Workbook

Sheet интернат гимн
A1: Согласовано | O1: Утверждено
A5: Меню для организации питания детей в возрасте с 7-10 лет, проживающих в интернате Мензелинского муниципального района на 2 полугодие 2024-2025 учебный год.
A7: 1 день, 1 неделя
A8: № рецептуры | B8: Прием пищи, наименование блюда | C8: Масса | D8: Пищевые вещества | G8: Энергетическая ценность | H8: Витамины | M8: Минеральные вещества
D9: Белки | E9: Жиры | F9: Углеводы | H9: B1 | I9: B2 | J9: A | K9: D | L9: C | M9: Na | N9: K | O9: Ca | P9: Mg | Q9: P | R9: Fe | S9: I | T9: Se | U9: F
C10: г | D10: г | E10: г | F10: г | G10: ккал | H10: мг | I10: мг | J10: мкг рет.экв | K10: мкг | L10: мг | M10: мг | N10: мг | O10: мг | P10: мг | Q10: мг | R10: мг | S10: мкг | T10: мкг | U10: мкг
B11: Завтрак
A12: 54-7К-2020 | B12: Каша манная | C12: 150 | D12: 6.16 | E12: 3.72 | F12: 27.84 | G12: 169.5 | H12: 0.05 | I12: 0.09 | J12: 13.5 | K12: 0 | L12: 0 | M12: 122 | N12: 167 | O12: 153 | P12: 18 | Q12: 121 | R12: 0.4 | S12: 13.5 | T12: 1.3 | U12: 24
A13: 54-23гн-2020 | B13: Кофейный напиток с молоком | C13: 200 | D13: 3.9 | E13: 2.9 | F13: 11.2 | G13: 86 | H13: 0.03 | I13: 0.13 | J13: 13.29 | K13: 0 | L13: 0.52 | M13: 38.55 | N13: 183.98 | O13: 148.32 | P13: 30.67 | Q13: 106.79 | R13: 1.06 | S13: 9 | T13: 1.76 | U13: 20
A14: Пром. | B14: Хлеб пшеничный | C14: 40 | D14: 2.3 | E14: 0.2 | F14: 14.8 | G14: 70.3 | H14: 0.03 | I14: 0.01 | J14: 0 | K14: 0 | L14: 0 | M14: 149.7 | N14: 27.9 | O14: 6 | P14: 4.2 | Q14: 19.5 | R14: 0.33 | S14: 0.96 | T14: 1.8 | U14: 4.35
A15: Пром. | B15: Фрукт (яблоко, банан, апельсин) | C15: 100 | D15: 0.4 | E15: 0.4 | F15: 9.8 | G15: 44.4 | H15: 0.03 | I15: 0.02 | J15: 5 | K15: 0 | L15: 10 | M15: 26 | N15: 278 | O15: 16 | P15: 9 | Q15: 11 | R15: 2.2 | S15: 2 | T15: 0.3 | U15: 8
B16: Итого за Завтрак | C16: =C12+C13+C14+C15 -> 490 | D16: =D12+D13+D14+D15 -> 12.76 | E16: 7.22 | F16: 63.64 | G16: 370.2 | H16: 0.14 | I16: 0.25 | J16: 31.79 | K16: 0 | L16: 10.52 | M16: 336.25 | N16: 656.88 | O16: 323.32 | P16: 61.87 | Q16: 258.29 | R16: 3.99 | S16: 25.46 | T16: 5.16 | U16: 56.35
B17: Обед
A18: № т/к 41 | B18: Салат из отварной моркови с яблоками и растительным маслом | C18: 60 | D18: 0.6 | E18: 5.9 | F18: 4.6 | G18: 74.4 | H18: 0 | I18: 0 | J18: 0.7 | K18: 0 | L18: 1.4 | M18: 0 | N18: 0 | O18: 19.1 | P18: 13.6 | Q18: 19.6 | R18: 0.8 | S18: 0 | T18: 0 | U18: 0
A19: 100 | B19: Суп картофельный с вермишелью | C19: 200 | D19: 10.2 | E19: 6.35 | F19: 34.2 | G19: 194.4 | H19: 0.1 | I19: 0 | J19: 0.2 | K19: 0 | L19: 5.3 | M19: 0 | N19: 0 | O19: 19.2 | P19: 18.7 | Q19: 46.1 | R19: 0.9 | S19: 0 | T19: 0 | U19: 0
A20: 54-6г-2020 | B20: Горошница | C20: 150 | D20: 3.6 | E20: 4.8 | F20: 36.4 | G20: 203.5 | H20: 0.03 | I20: 0.02 | J20: 18.36 | K20: 0.09 | L20: 0 | M20: 152.8 | N20: 46.55 | O20: 106.65 | P20: 23.59 | Q20: 72.57 | R20: 0.49 | S20: 20.76 | T20: 7.24 | U20: 27.19
A21: ном.рец №174 | B21: Тефтели мясные из говядины, полуфабрикат в соусе | C21: 75/30 | D21: 10.81 | E21: 10.4 | F21: 8.42 | G21: 168.9 | H21: 0 | I21: 0 | J21: 38.45 | K21: 0.01 | L21: 1.79 | M21: 3 | N21: 43 | O21: 45.75 | P21: 35.13 | Q21: 109 | R21: 1.6 | S21: 0 | T21: 0 | U21: 0
A22: 54-4гн-2020 | B22: Чай с молоком и сахаром | C22: 200 | D22: 1.6 | E22: 1.1 | F22: 8.6 | G22: 50.9 | H22: 0.01 | I22: 0.07 | J22: 6.9 | K22: 0 | L22: 0.3 | M22: 19.68 | N22: 81.35 | O22: 103.48 | P22: 9.92 | Q22: 46.33 | R22: 0.78 | S22: 4.5 | T22: 0.88 | U22: 10
A23: № Т/К 102 | B23: Оладушек П/Ф (35гр) 1 шт | C23: 35 | D23: 2.53 | E23: 3.22 | F23: 14.75 | G23: 103.32 | H23: 0.045 | I23: 0.00 | J23: 0.01 | K23: 0.00 | L23: 0.34 | M23: 0.00 | N23: 0.00 | O23: 27.61 | P23: 6.16 | Q23: 36.33 | R23: 0.45 | S23: 0.00 | T23: 0.00 | U23: 0.00
A24: Пром. | B24: Хлеб ржаной | C24: 20 | D24: 1.3 | E24: 0.2 | F24: 6.7 | G24: 34.2 | H24: 0.04 | I24: 0.02 | J24: 0 | K24: 0 | L24: 0 | M24: 122 | N24: 49 | O24: 7 | P24: 9.4 | Q24: 31.6 | R24: 0.78 | S24: 0 | T24: 6.18 | U24: 0
B25: Итого за Обед | C25: 770 | D25: =D18+D19+D20+D21+D22+D23+D24 -> 30.64 | E25: =E18+E19+E20+E21+E22+E23+E24 -> 31.97 | F25: 113.67 | G25: 829.62 | H25: 0.225 | I25: 0.11 | J25: 64.62 | K25: 0.1 | L25: 9.13 | M25: 297.48 | N25: 219.9 | O25: 328.79 | P25: 116.5 | Q25: 361.53 | R25: 5.8 | S25: 25.26 | T25: 14.3 | U25: 37.19
B26: Полдник
A27: Пром. | B27: Сок персиковый | C27: 200 | D27: 0.6 | E27: 0 | F27: 33 | G27: 134.4 | H27: 0.03 | I27: 0.06 | J27: 60 | K27: 0 | L27: 5 | M27: 9 | N27: 252 | O27: 9 | P27: 21 | Q27: 26 | R27: 0.3 | S27: 0 | T27: 0 | U27: 0
A28: Пром. | B28: Пряник | C28: 30 | D28: 1.8 | E28: 1.4 | F28: 22.5 | G28: 109.8 | H28: 0.02 | I28: 0.01 | J28: 0 | K28: 0 | L28: 0 | M28: 0.6 | N28: 21.3 | O28: 3.3 | P28: 2.7 | Q28: 15 | R28: 0.24 | S28: 0 | T28: 0 | U28: 0
B29: Итого за Полдник | C29: =C27+C28 -> 230 | D29: =D27+D28 -> 2.4 | E29: 1.4 | F29: 55.5 | G29: 244.2 | H29: 0.05 | I29: 0.07 | J29: 60 | K29: 0 | L29: 5 | M29: 9.6 | N29: 273.3 | O29: 12.3 | P29: 23.7 | Q29: 41 | R29: 0.54 | S29: 0 | T29: 0 | U29: 0
B30: Ужин
A31: 54-3гн-2020 | B31: Макароны отварные с сыром | C31: 180 | D31: 9.49 | E31: 8.19 | F31: 34.39 | G31: 249.3 | H31: 0.08 | I31: 0.06 | J31: 40.39 | K31: 0.23 | L31: 0 | M31: 290 | N31: 69 | O31: 187 | P31: 12 | Q31: 120 | R31: 0.9 | S31: 24.8 | T31: 2.3 | U31: 12.44
A32: 54-3гн-2020 | B32: Кисель | C32: 200 | D32: 0.01 | E32: 0 | F32: 12.62 | G32: 50.6 | H32: 0.03 | I32: 0.04 | J32: 12.5 | K32: 0 | L32: 3 | M32: 0 | N32: 1 | O32: 58 | P32: 0 | Q32: 0 | R32: 0 | S32: 0 | T32: 0 | U32: 0
A33: Пром. | B33: Хлеб пшеничный | C33: 30 | D33: 2.3 | E33: 0.2 | F33: 14.8 | G33: 70.3 | H33: 0.03 | I33: 0.01 | J33: 0 | K33: 0 | L33: 0 | M33: 149.7 | N33: 27.9 | O33: 6 | P33: 4.2 | Q33: 19.5 | R33: 0.33 | S33: 0.96 | T33: 1.8 | U33: 4.35
A34: Пром. | B34: Хлеб ржаной | C34: 20 | D34: 1.3 | E34: 0.2 | F34: 6.7 | G34: 34.2 | H34: 0.04 | I34: 0.02 | J34: 0 | K34: 0 | L34: 0 | M34: 122 | N34: 49 | O34: 7 | P34: 9.4 | Q34: 31.6 | R34: 0.78 | S34: 0 | T34: 6.18 | U34: 0
B35: Итого за Ужин | C35: 500 | D35: =D31+D32+D33+D15+D37+D34 -> 19.3 | E35: =E31+E32+E33+E15+E37+E34 -> 13.99 | F35: 86.71 | G35: 550.6 | H35: 0.24 | I35: 0.36 | J35: 84.29 | K35: 0.23 | L35: 13 | M35: 663.7 | N35: 666.9 | O35: 492 | P35: 58.6 | Q35: 342.1 | R35: 4.41 | S35: 45.76 | T35: 12.38 | U35: 64.79
B36: Ужин 2
A37: Пром. | B37: Ряженка 2.5% | C37: 200 | D37: 5.8 | E37: 5 | F37: 8.4 | G37: 101.8 | H37: 0.03 | I37: 0.21 | J37: 26.4 | K37: 0 | L37: 0 | M37: 76 | N37: 242 | O37: 218 | P37: 24 | Q37: 160 | R37: 0.2 | S37: 18 | T37: 1.8 | U37: 40
B38: Итого за ужин 2 | C38: =C37 -> 200 | D38: =D37 -> 5.8 | E38: 5 | F38: 8.4 | G38: 101.8 | H38: 0.03 | I38: 0.21 | J38: 26.4 | K38: 0 | L38: 0 | M38: 76 | N38: 242 | O38: 218 | P38: 24 | Q38: 160 | R38: 0.2 | S38: 18 | T38: 1.8 | U38: 40
B39: Итого за день | C39: =C16+C25+C29+C35+C38 -> 2190 | D39: 70.9 | E39: 59.58 | F39: 327.92 | G39: 2096.42 | H39: 0.685 | I39: 1 | J39: 267.1 | K39: 0.33 | L39: 37.65 | M39: 1383.03 | N39: 2058.98 | O39: 1374.41 | P39: 284.67 | Q39: 1162.92 | R39: 14.94 | S39: 114.48 | T39: 33.64 | U39: 198.33
A41: 2 день, 1 неделя
A42: № рецептуры | B42: Прием пищи, наименование блюда | C42: Масса | D42: Пищевые вещества | G42: Энергетическая ценность | H42: Витамины | M42: Минеральные вещества
D43: Белки | E43: Жиры | F43: Углеводы | H43: B1 | I43: B2 | J43: A | K43: D | L43: C | M43: Na | N43: K | O43: Ca | P43: Mg | Q43: P | R43: Fe | S43: I | T43: Se | U43: F
C44: г | D44: г | E44: г | F44: г | G44: ккал | H44: мг | I44: мг | J44: мкг рет.экв | K44: мкг | L44: мг | M44: мг | N44: мг | O44: мг | P44: мг | Q44: мг | R44: мг | S44: мкг | T44: мкг | U44: мкг
B45: Завтрак
A46: 54-1з-2020 | B46: Сыр твердых сортов в нарезке | C46: 10 | D46: 3.48 | E46: 4.42 | F46: 0 | G46: 53.7 | H46: 0 | I46: 0.04 | J46: 23.4 | K46: 0.14 | L46: 0.04 | M46: 92.34 | N46: 10.96 | O46: 116.16 | P46: 4.57 | Q46: 65.25 | R46: 0.13 | S46: 0 | T46: 1.9 | U46: 0
A47: 54-22к-2020 | B47: Каша жидкая молочная овсяная | C47: 200 | D47: 6.82 | E47: 7.44 | F47: 24.61 | G47: 192.6 | H47: 0.14 | I47: 0.17 | J47: 29.08 | K47: 0.07 | L47: 1 | M47: 348 | N47: 237 | O47: 164 | P47: 45 | Q47: 188 | R47: 1.1 | S47: 52.01 | T47: 9.9 | U47: 49.61
A48: 54-2гн-2020 | B48: Чай с сахаром | C48: 200 | D48: 0.2 | E48: 0 | F48: 6.4 | G48: 26.8 | H48: 0 | I48: 0.01 | J48: 0.3 | K48: 0 | L48: 0.04 | M48: 0.68 | N48: 20.76 | O48: 66.08 | P48: 3.83 | Q48: 7.18 | R48: 0.73 | S48: 0 | T48: 0 | U48: 0
A49: Пром. | B49: Хлеб пшеничный | C49: 30 | D49: 2.3 | E49: 0.2 | F49: 14.8 | G49: 70.3 | H49: 0.03 | I49: 0.01 | J49: 0 | K49: 0 | L49: 0 | M49: 149.7 | N49: 27.9 | O49: 6 | P49: 4.2 | Q49: 19.5 | R49: 0.33 | S49: 0.96 | T49: 1.8 | U49: 4.35
A50: Пром. | B50: Хлеб ржаной | C50: 20 | D50: 1.3 | E50: 0.2 | F50: 6.7 | G50: 34.2 | H50: 0.04 | I50: 0.02 | J50: 0 | K50: 0 | L50: 0 | M50: 122 | N50: 49 | O50: 7 | P50: 9.4 | Q50: 31.6 | R50: 0.78 | S50: 0 | T50: 6.18 | U50: 0
B51: Итого за Завтрак | C51: =C46+C47+C48+C49+C50 -> 460 | D51: =D46+D47+D48+D49+D50 -> 14.1 | E51: 12.26 | F51: 52.51 | G51: 377.6 | H51: 0.21 | I51: 0.25 | J51: 52.78 | K51: 0.21 | L51: 1.08 | M51: 712.72 | N51: 345.62 | O51: 359.24 | P51: 67 | Q51: 311.53 | R51: 3.07 | S51: 52.97 | T51: 19.78 | U51: 53.96
B52: Обед
A53: №Т/К 33 | B53: Свекла отварная (порциями) | C53: 60 | D53: 0.9 | E53: 0.1 | F53: 5 | G53: 24.1 | H53: 0 | I53: 0 | J53: 0 | K53: 0 | L53: 2.4 | M53: 0 | N53: 0 | O53: 21.6 | P53: 11.8 | Q53: 23.4 | R53: 0.7 | S53: 0 | T53: 0 | U53: 0
A54: 54-1с-2020 | B54: Суп щи | C54: 200 | D54: 4.66 | E54: 5.63 | F54: 5.73 | G54: 92.2 | H54: 0.01 | I54: 0.03 | J54: 104.94 | K54: 0 | L54: 10 | M54: 98 | N54: 184 | O54: 37 | P54: 13 | Q54: 30 | R54: 0.4 | S54: 15.25 | T54: 0.2 | U54: 14.76
A55: 54-4г-2020 | B55: Каша гречневая рассыпчатая | C55: 150 | D55: 3.2 | E55: 4.8 | F55: 25.9 | G55: 107.1 | H55: 0.21 | I55: 0.12 | J55: 19.19 | K55: 0.09 | L55: 0 | M55: 149.45 | N55: 219.36 | O55: 46.62 | P55: 120.16 | Q55: 180.99 | R55: 4.05 | S55: 22.28 | T55: 3.52 | U55: 16.06
A56: №Т/К 272 | B56: Котлета мясная с соусом | C56: 65/35 | D56: 11.28 | E56: 10.87 | F56: 12.4 | G56: 179.2 | H56: 0 | I56: 0 | J56: 0.1 | K56: 0 | L56: 1.8 | M56: 0 | N56: 0 | O56: 18.9 | P56: 22.1 | Q56: 115.5 | R56: 1.9 | S56: 0 | T56: 0 | U56: 0
A57: 54-1хн-2020 | B57: Компот из смеси сухофруктов | C57: 200 | D57: 0.47 | E57: 0 | F57: 14.78 | G57: 65 | H57: 0 | I57: 0 | J57: 15 | K57: 0 | L57: 0 | M57: 0 | N57: 0 | O57: 108 | P57: 2 | Q57: 4 | R57: 0.1 | S57: 0 | T57: 0 | U57: 0
A58: Пром. | B58: Хлеб пшеничный | C58: 20 | D58: 1.52 | E58: 0.16 | F58: 9.84 | G58: 46.9 | H58: 0.02 | I58: 0.01 | J58: 0 | K58: 0 | L58: 0 | M58: 100 | N58: 19 | O58: 4 | P58: 3 | Q58: 13 | R58: 0.2 | S58: 0.64 | T58: 1.2 | U58: 2.9
A59: Пром. | B59: Хлеб ржаной | C59: 20 | D59: 1.3 | E59: 0.2 | F59: 6.7 | G59: 34.2 | H59: 0.04 | I59: 0.02 | J59: 0 | K59: 0 | L59: 0 | M59: 122 | N59: 49 | O59: 7 | P59: 9.4 | Q59: 31.6 | R59: 0.78 | S59: 0 | T59: 6.18 | U59: 0
B60: Итого за Обед | C60: 750 | D60: =SUM(D53:D59) -> 23.33 | E60: 21.76 | F60: 80.35 | G60: =SUM(G53:G59) -> 548.7 | H60: =SUM(H53:H59) -> 0.28 | I60: 0.18 | J60: 139.23 | K60: 0.09 | L60: 14.2 | M60: 469.45 | N60: 471.36 | O60: 243.12 | P60: 181.46 | Q60: 398.49 | R60: 8.13 | S60: 38.17 | T60: 11.1 | U60: 33.72
B61: Полдник
A62: Пром. | B62: Вафли с фруктовыми начинками | C62: 30 | D62: 0.84 | E62: 0.99 | F62: 23.19 | G62: 105 | H62: 0.01 | I62: 0.01 | J62: 0.54 | K62: 0 | L62: 0 | M62: 11.17 | N62: 34.86 | O62: 4.22 | P62: 2.61 | Q62: 9.4 | R62: 0.39 | S62: 0 | T62: 0 | U62: 0
A63: Пром. | B63: Сок яблочный | C63: 200 | D63: 1 | E63: 0.2 | F63: 20.2 | G63: 86.6 | H63: 0.02 | I63: 0.02 | J63: 0 | K63: 0 | L63: 4 | M63: 12 | N63: 240 | O63: 14 | P63: 8 | Q63: 14 | R63: 2.8 | S63: 0 | T63: 0 | U63: 0
B64: Итого за Полдник | C64: =C62+C63 -> 230 | D64: =D62+D63 -> 1.84 | E64: 1.19 | F64: 43.39 | G64: 191.6 | H64: 0.03 | I64: 0.03 | J64: 0.54 | K64: 0 | L64: 4 | M64: 23.17 | N64: 274.86 | O64: 18.22 | P64: 10.61 | Q64: 23.4 | R64: 3.19 | S64: 0 | T64: 0 | U64: 0
B65: Ужин
A66: 54-6т-2020 | B66: Сырники из творога | C66: 160 | D66: 31.4 | E66: 9.2 | F66: 26.3 | G66: 313.2 | H66: 0.07 | I66: 0.33 | J66: 46.02 | K66: 0.15 | L66: 0.3 | M66: 146.88 | N66: 169.42 | O66: 219.92 | P66: 33.17 | Q66: 304.73 | R66: 0.87 | S66: 27.47 | T66: 40.06 | U66: 54.51
A67: 54-33хн-2020 | B67: Напиток апельсиновый | C67: 200 | D67: 0.2 | E67: 0 | F67: 8 | G67: 33 | H67: 0.01 | I67: 0.01 | J67: 1.06 | K67: 0 | L67: 5.28 | M67: 2.23 | N67: 36.15 | O67: 74.47 | P67: 2.49 | Q67: 4.4 | R67: 0.08 | S67: 0.44 | T67: 0.1 | U67: 3.74
A68: Пром. | B68: Хлеб пшеничный | C68: 30 | D68: 2.3 | E68: 0.2 | F68: 14.8 | G68: 70.3 | H68: 0.03 | I68: 0.01 | J68: 0 | K68: 0 | L68: 0 | M68: 149.7 | N68: 27.9 | O68: 6 | P68: 4.2 | Q68: 19.5 | R68: 0.33 | S68: 0.96 | T68: 1.8 | U68: 4.35
A69: 451 СПБ 2008 | B69: Пирожок печеный с картошкой | C69: 100 | D69: 1.6 | E69: 0.2 | F69: 10.3 | G69: 49.6 | H69: 0.03 | I69: 0.01 | J69: 0 | K69: 0 | L69: 0 | M69: 90.75 | N69: 27.75 | O69: 4.5 | P69: 6.9 | Q69: 18.15 | R69: 0.44 | S69: 0 | T69: 0 | U69: 0
B70: Итого за Ужин | C70: =C66+C67+C68+C69 -> 490 | D70: =D66+D67+D68+D69 -> 35.5 | E70: 9.6 | F70: 59.4 | G70: 466.1 | H70: 0.14 | I70: 0.36 | J70: 47.08 | K70: 0.15 | L70: 5.58 | M70: 389.56 | N70: 261.22 | O70: 304.89 | P70: 46.76 | Q70: 346.78 | R70: 1.72 | S70: 28.87 | T70: 41.96 | U70: 62.6
B71: Ужин 2
A72: Пром. | B72: Кефир 3.2% | C72: 200 | D72: 5.8 | E72: 5 | F72: 8 | G72: 100.2 | H72: 0.06 | I72: 0.27 | J72: 26.4 | K72: 0 | L72: 1 | M72: 76 | N72: 242 | O72: 211 | P72: 24 | Q72: 157 | R72: 0.2 | S72: 18 | T72: 3.5 | U72: 40
B73: Итого за ужин 2 | C73: =C72 -> 200 | D73: =D72 -> 5.8 | E73: 5 | F73: 8 | G73: 100.2 | H73: 0.06 | I73: 0.27 | J73: 26.4 | K73: 0 | L73: 1 | M73: 76 | N73: 242 | O73: 211 | P73: 24 | Q73: 157 | R73: 0.2 | S73: 18 | T73: 3.5 | U73: =U72 -> 40
B74: Итого за день | C74: =C51+C60+C64+C70+C73 -> 2130 | D74: 80.57 | E74: 49.81 | F74: 243.65 | G74: 1684.2 | H74: 0.72 | I74: 1.09 | J74: 266.03 | K74: 0.45 | L74: 25.86 | M74: 1670.9 | N74: 1595.06 | O74: 1136.47 | P74: 329.83 | Q74: 1237.2 | R74: 16.31 | S74: 138.01 | T74: 76.34 | U74: 190.28
A76: 3 день, 1 неделя
A77: № рецептуры | B77: Прием пищи, наименование блюда | C77: Масса | D77: Пищевые вещества | G77: Энергетическая ценность | H77: Витамины | M77: Минеральные вещества
D78: Белки | E78: Жиры | F78: Углеводы | H78: B1 | I78: B2 | J78: A | K78: D | L78: C | M78: Na | N78: K | O78: Ca | P78: Mg | Q78: P | R78: Fe | S78: I | T78: Se | U78: F
C79: г | D79: г | E79: г | F79: г | G79: ккал | H79: мг | I79: мг | J79: мкг рет.экв | K79: мкг | L79: мг | M79: мг | N79: мг | O79: мг | P79: мг | Q79: мг | R79: мг | S79: мкг | T79: мкг | U79: мкг
B80: Завтрак
A81: 53-19з-2020 | B81: Масло сливочное (порциями) | C81: 10 | D81: 0.08 | E81: 7.25 | F81: 0.13 | G81: 66.1 | H81: 0 | I81: 0.01 | J81: 27 | K81: 0.13 | L81: 0 | M81: 1.14 | N81: 2.49 | O81: 2.11 | P81: 0 | Q81: 2.61 | R81: 0.02 | S81: 0 | T81: 0.1 | U81: 0.3
A82: 54-21к-2020 | B82: Каша вязкая молочная ячневая | C82: 150 | D82: 5.4 | E82: 7 | F82: 25.6 | G82: 186.8 | H82: 0.09 | I82: 0.13 | J82: 31.14 | K82: 0.1 | L82: 0.43 | M82: 256.67 | N82: 158.61 | O82: 127.09 | P82: 24.68 | Q82: 166.41 | R82: 0.63 | S82: 37.43 | T82: 12.57 | U82: 46.68
A83: 54-3гн-2020 | B83: Кисель | C83: 200 | D83: 0.01 | E83: 0 | F83: 12.62 | G83: 50.6 | H83: 0.03 | I83: 0.04 | J83: 12.5 | K83: 0 | L83: 3 | M83: 0 | N83: 1 | O83: 58 | P83: 0 | Q83: 0 | R83: 0 | S83: 0 | T83: 0 | U83: 0
A84: Пром. | B84: Хлеб пшеничный | C84: 40 | D84: 2.3 | E84: 0.2 | F84: 14.8 | G84: 70.3 | H84: 0.03 | I84: 0.01 | J84: 0 | K84: 0 | L84: 0 | M84: 149.7 | N84: 27.9 | O84: 6 | P84: 4.2 | Q84: 19.5 | R84: 0.33 | S84: 0.96 | T84: 1.8 | U84: 4.35
B85: Итого за Завтрак | C85: =C81+C82+C83+C84 -> 400 | D85: =D81+D82+D83+D84 -> 7.79 | E85: 14.45 | F85: 53.15 | G85: 373.8 | H85: 0.15 | I85: 0.19 | J85: 70.64 | K85: 0.23 | L85: 3.43 | M85: 407.51 | N85: 190 | O85: 193.2 | P85: 28.88 | Q85: 188.52 | R85: 0.98 | S85: 38.39 | T85: 14.47 | U85: 51.33
B86: Обед
A87: 54-16з-2020 | B87: Винегрет с растительным маслом | C87: 60 | D87: 0.7 | E87: 5.4 | F87: 4 | G87: 67.1 | H87: 0.02 | I87: 0.02 | J87: 72.89 | K87: 0 | L87: 2.26 | M87: 200.99 | N87: 127.85 | O87: 12.1 | P87: 9.66 | Q87: 21.4 | R87: 0.41 | S87: 7.86 | T87: 0.13 | U87: 11.85
A88: 54-11с-2020 | B88: Суп крестьянский с крупой (крупа рисовая) | C88: 200 | D88: 5 | E88: 5.8 | F88: 11.3 | G88: 116.9 | H88: 0.04 | I88: 0.04 | J88: 103.29 | K88: 0 | L88: 6.42 | M88: 96.69 | N88: 195.41 | O88: 25.55 | P88: 15.32 | Q88: 40.39 | R88: 0.5 | S88: 15.37 | T88: 1.25 | U88: 20.68
A89: 54-1г-2020 | B89: Макароны отварные | C89: 150 | D89: 5.3 | E89: 4.9 | F89: 32.8 | G89: 196.8 | H89: 0.06 | I89: 0.02 | J89: 18.36 | K89: 0.09 | L89: 0 | M89: 149.04 | N89: 53.8 | O89: 105.83 | P89: 7.19 | Q89: 40.7 | R89: 0.73 | S89: 20.77 | T89: 0.06 | U89: 11.92
A90: № рец. 290 | B90: Птица тушеная в соусе | C90: 80/30 | D90: 13.8 | E90: 14.8 | F90: 3.9 | G90: 145 | H90: 0.1 | I90: 0 | J90: 0 | K90: 0 | L90: 1.5 | M90: 0 | N90: 0 | O90: 26.4 | P90: 16.6 | Q90: 115.3 | R90: 0.9 | S90: 0 | T90: 0 | U90: 0
A91: 54-3гн-2020 | B91: Чай с лимоном и сахаром | C91: 207 | D91: 0.2 | E91: 0.1 | F91: 6.6 | G91: 27.9 | H91: 0 | I91: 0.01 | J91: 0.38 | K91: 0 | L91: 1.16 | M91: 1.26 | N91: 30.23 | O91: 67 | P91: 4.56 | Q91: 8.52 | R91: 0.77 | S91: 0.01 | T91: 0.02 | U91: 0.7
A92: Пром. | B92: Хлеб ржаной | C92: 20 | D92: 1.3 | E92: 0.2 | F92: 6.7 | G92: 34.2 | H92: 0.04 | I92: 0.02 | J92: 0 | K92: 0 | L92: 0 | M92: 122 | N92: 49 | O92: 7 | P92: 9.4 | Q92: 31.6 | R92: 0.78 | S92: 0 | T92: 6.18 | U92: 0
A93: Пром. | B93: Хлеб пшеничный | C93: 20 | D93: 1.52 | E93: 0.16 | F93: 9.84 | G93: 46.9 | H93: 0.02 | I93: 0.01 | J93: 0 | K93: 0 | L93: 0 | M93: 100 | N93: 19 | O93: 4 | P93: 3 | Q93: 13 | R93: 0.2 | S93: 0.64 | T93: 1.2 | U93: 2.9
B94: Итого за Обед | C94: 767 | D94: =D87+D88+D89+D90+D91+D92+D93 -> 27.82 | E94: =E87+E88+E89+E90+E91+E92+E93 -> 31.36 | F94: 75.14 | G94: 634.8 | H94: 0.28 | I94: 0.12 | J94: 194.92 | K94: 0.09 | L94: 11.34 | M94: 669.98 | N94: 475.29 | O94: 247.88 | P94: 65.73 | Q94: 270.91 | R94: 4.29 | S94: 44.65 | T94: 8.84 | U94: 48.05
B95: Полдник
A96: Пром. | B96: Сок персиковый | C96: 200 | D96: 0.6 | E96: 0 | F96: 33 | G96: 134.4 | H96: 0.03 | I96: 0.06 | J96: 60 | K96: 0 | L96: 5 | M96: 9 | N96: 252 | O96: 9 | P96: 21 | Q96: 26 | R96: 0.3 | S96: 0 | T96: 0 | U96: 0
A97: 54-10в-2020 | B97: Булочка ванильная | C97: 60 | D97: 4.7 | E97: 4 | F97: 30.5 | G97: 176.9 | H97: 0.06 | I97: 0.03 | J97: 19.12 | K97: 0.14 | L97: 0 | M97: 240.68 | N97: 50.54 | O97: 17.63 | P97: 6.52 | Q97: 40.93 | R97: 0.57 | S97: 33.36 | T97: 3.15 | U97: 11.03
B98: Итого за Полдник | C98: =C96+C97 -> 260 | D98: =D96+D97 -> 5.3 | E98: 4 | F98: 63.5 | G98: 311.3 | H98: 0.09 | I98: 0.09 | J98: 79.12 | K98: 0.14 | L98: 5 | M98: 249.68 | N98: 302.54 | O98: 26.63 | P98: 27.52 | Q98: 66.93 | R98: 0.87 | S98: 33.36 | T98: 3.15 | U98: 11.03
B99: Ужин
A100: 54-22м-2020 | B100: Рагу из курицы | C100: 160/60 | D100: 23.05 | E100: 7.74 | F100: 19.27 | G100: 239 | H100: 0.15 | I100: 0.12 | J100: 285.64 | K100: 0 | L100: 13 | M100: 310 | N100: 812 | O100: 34 | P100: 102 | Q100: 213 | R100: 2.3 | S100: 47.26 | T100: 18.7 | U100: 172
A101: Пром. | B101: Хлеб ржаной | C101: 20 | D101: 1.3 | E101: 0.2 | F101: 6.7 | G101: 34.2 | H101: 0.04 | I101: 0.02 | J101: 0 | K101: 0 | L101: 0 | M101: 122 | N101: 49 | O101: 7 | P101: 9.4 | Q101: 31.6 | R101: 0.78 | S101: 0 | T101: 6.18 | U101: 0
A102: Пром. | B102: Хлеб пшеничный | C102: 30 | D102: 2.3 | E102: 0.2 | F102: 14.8 | G102: 70.3 | H102: 0.03 | I102: 0.01 | J102: 0 | K102: 0 | L102: 0 | M102: 149.7 | N102: 27.9 | O102: 6 | P102: 4.2 | Q102: 19.5 | R102: 0.33 | S102: 0.96 | T102: 1.8 | U102: 4.35
A103: 54-4гн-2020 | B103: Чай с молоком и сахаром | C103: 200 | D103: 1.6 | E103: 1.1 | F103: 8.6 | G103: 50.9 | H103: 0.01 | I103: 0.07 | J103: 6.9 | K103: 0 | L103: 0.3 | M103: 19.68 | N103: 81.35 | O103: 103.48 | P103: 9.92 | Q103: 46.33 | R103: 0.78 | S103: 4.5 | T103: 0.88 | U103: 10
B104: Итого за Ужин | C104: 470 | D104: =SUM(D100:D103) -> 28.25 | E104: =SUM(E100:E103) -> 9.24 | F104: 49.37 | G104: =SUM(G100:G103) -> 394.4 | H104: 0.23 | I104: 0.22 | J104: 292.54 | K104: 0 | L104: 13.3 | M104: 601.38 | N104: 970.25 | O104: 150.48 | P104: 125.52 | Q104: 310.43 | R104: 4.19 | S104: 52.72 | T104: 27.56 | U104: 186.35
B105: Ужин 2
A106: Пром. | B106: Ряженка 2.5% | C106: 200 | D106: 5.8 | E106: 5 | F106: 8.4 | G106: 101.8 | H106: 0.03 | I106: 0.21 | J106: 26.4 | K106: 0 | L106: 0 | M106: 76 | N106: 242 | O106: 218 | P106: 24 | Q106: 160 | R106: 0.2 | S106: 18 | T106: 1.8 | U106: 40
B107: Итого за ужин 2 | C107: =C106 -> 200 | D107: =D106 -> 5.8 | E107: 5 | F107: 8.4 | G107: 101.8 | H107: 0.03 | I107: 0.21 | J107: 26.4 | K107: 0 | L107: 0 | M107: 76 | N107: 242 | O107: 218 | P107: 24 | Q107: 160 | R107: 0.2 | S107: 18 | T107: 1.8 | U107: 40
B108: Итого за день | C108: =C85+C94+C98+C104+C107 -> 2097 | D108: 74.96 | E108: 64.05 | F108: 249.56 | G108: 1816.1 | H108: 0.78 | I108: 0.83 | J108: 663.62 | K108: 0.46 | L108: 33.07 | M108: 2004.55 | N108: 2180.08 | O108: 836.19 | P108: 271.65 | Q108: 996.79 | R108: 10.53 | S108: 187.12 | T108: 55.82 | U108: 336.76
A110: 4 день, 1 неделя
A111: № рецептуры | B111: Прием пищи, наименование блюда | C111: Масса | D111: Пищевые вещества | G111: Энергетическая ценность | H111: Витамины | M111: Минеральные вещества
D112: Белки | E112: Жиры | F112: Углеводы | H112: B1 | I112: B2 | J112: A | K112: D | L112: C | M112: Na | N112: K | O112: Ca | P112: Mg | Q112: P | R112: Fe | S112: I | T112: Se | U112: F
C113: г | D113: г | E113: г | F113: г | G113: ккал | H113: мг | I113: мг | J113: мкг рет.экв | K113: мкг | L113: мг | M113: мг | N113: мг | O113: мг | P113: мг | Q113: мг | R113: мг | S113: мкг | T113: мкг | U113: мкг
B114: Завтрак
A115: 54-1з-2020 | B115: Сыр твердых сортов в нарезке | C115: 10 | D115: 2.8 | E115: 3.5 | F115: 0 | G115: 43 | H115: 0 | I115: 0.04 | J115: 31.2 | K115: 0.12 | L115: 0.08 | M115: 97.2 | N115: 10.56 | O115: 105.6 | P115: 4.2 | Q115: 60 | R115: 0.12 | S115: 0 | T115: 1.74 | U115: 0
A116: 54-13к-2020 | B116: Каша вязкая молочная пшеничная | C116: 150 | D116: 6.1 | E116: 6.9 | F116: 29 | G116: 202.7 | H116: 0.1 | I116: 0.13 | J116: 30.74 | K116: 0.1 | L116: 0.41 | M116: 256.57 | N116: 169.91 | O116: 113.68 | P116: 29.4 | Q116: 154.74 | R116: 1.64 | S116: 37.16 | T116: 24.8 | U116: 16.11
A117: 54-2гн-2020 | B117: Чай с сахаром | C117: 200 | D117: 0.2 | E117: 0 | F117: 6.4 | G117: 26.8 | H117: 0 | I117: 0.01 | J117: 0.3 | K117: 0 | L117: 0.04 | M117: 0.68 | N117: 20.76 | O117: 66.08 | P117: 3.83 | Q117: 7.18 | R117: 0.73 | S117: 0 | T117: 0 | U117: 0
A118: Пром. | B118: Хлеб пшеничный | C118: 40 | D118: 2.3 | E118: 0.2 | F118: 14.8 | G118: 70.3 | H118: 0.03 | I118: 0.01 | J118: 0 | K118: 0 | L118: 0 | M118: 149.7 | N118: 27.9 | O118: 6 | P118: 4.2 | Q118: 19.5 | R118: 0.33 | S118: 0.96 | T118: 1.8 | U118: 4.35
B119: Итого за Завтрак | C119: =C115+C116+C117+C118 -> 400 | D119: =D115+D116+D117+D118 -> 11.4 | E119: 10.6 | F119: 50.2 | G119: 342.8 | H119: 0.13 | I119: 0.19 | J119: 62.24 | K119: 0.22 | L119: 0.53 | M119: 504.15 | N119: 229.13 | O119: 291.36 | P119: 41.63 | Q119: 241.42 | R119: 2.82 | S119: 38.12 | T119: 28.34 | U119: 20.46
B120: Обед
A121: № Т/к 15 | B121: Морковь отварная порциями | C121: 60 | D121: 0.8 | E121: 0.1 | F121: 4.1 | G121: 21 | H121: 0 | I121: 0 | J121: 1.5 | K121: 0 | L121: 3 | M121: 0 | N121: 0 | O121: 30.6 | P121: 22.8 | Q121: 33 | R121: 0.6 | S121: 0 | T121: 0 | U121: 0
A122: 54-6с-2020 | B122: Суп картофельный с клецками | C122: 200 | D122: 4.6 | E122: 3.3 | F122: 11.4 | G122: 93.6 | H122: 0.05 | I122: 0.04 | J122: 101.43 | K122: 0.05 | L122: 3.69 | M122: 58.01 | N122: 222.12 | O122: 13.28 | P122: 12.74 | Q122: 35.97 | R122: 0.54 | S122: 10.28 | T122: 0.94 | U122: 21.22
A123: 54-11г-2020 | B123: Картофельное пюре | C123: 150 | D123: 3.1 | E123: 5.3 | F123: 19.8 | G123: 139.4 | H123: 0.12 | I123: 0.11 | J123: 23.8 | K123: 0.09 | L123: 10.2 | M123: 161.78 | N123: 624.83 | O123: 39.49 | P123: 28.23 | Q123: 84.47 | R123: 1.03 | S123: 28.46 | T123: 0.78 | U123: 42.79
A124: т/к №296 | B124: "Ёжики" мясные 2 шт | C124: 100 | D124: 10.8 | E124: 10.3 | F124: 22.5 | G124: 240.1 | H124: 0 | I124: 0 | J124: 0 | K124: 0 | L124: 1.6 | M124: 0 | N124: 0 | O124: 26.8 | P124: 23.9 | Q124: 129.9 | R124: 1.8 | S124: 0 | T124: 0 | U124: 0
A125: Т/к №430 | B125: Чай с сахаром и яблоком | C125: 200 | D125: 0.2 | E125: 0 | F125: 8.2 | G125: 34.1 | H125: 0 | I125: 0 | J125: 0 | K125: 0 | L125: 0.4 | M125: 0 | N125: 0 | O125: 14.1 | P125: 6.5 | Q125: 8.4 | R125: 0.9 | S125: 0 | T125: 0 | U125: 0
A126: Пром. | B126: Хлеб пшеничный | C126: 20 | D126: 1.52 | E126: 0.16 | F126: 9.84 | G126: 46.9 | H126: 0.02 | I126: 0.01 | J126: 0 | K126: 0 | L126: 0 | M126: 100 | N126: 19 | O126: 4 | P126: 3 | Q126: 13 | R126: 0.2 | S126: 0.64 | T126: 1.2 | U126: 2.9
A127: Пром. | B127: Хлеб ржаной | C127: 20 | D127: 1.3 | E127: 0.2 | F127: 6.7 | G127: 34.2 | H127: 0.04 | I127: 0.02 | J127: 0 | K127: 0 | L127: 0 | M127: 122 | N127: 49 | O127: 7 | P127: 9.4 | Q127: 31.6 | R127: 0.78 | S127: 0 | T127: 6.18 | U127: 0
B128: Итого за Обед | C128: =C121+C122+C123+C124+C125+C126+C127 -> 750 | D128: =D121+D122+D123+D124+D125+D126+D127 -> 22.32 | E128: =E121+E122+E123+E124+E125+E126+E127 -> 19.36 | F128: =F121+F122+F123+F124+F125+F126+F127 -> 82.54 | G128: 609.3 | H128: 0.23 | I128: 0.18 | J128: 126.73 | K128: 0.14 | L128: 18.89 | M128: 441.79 | N128: 914.95 | O128: 135.27 | P128: 106.57 | Q128: 336.34 | R128: 5.85 | S128: 39.38 | T128: 9.1 | U128: 66.91
B129: Полдник
A130: Пром. | B130: Сушка простая | C130: 20 | D130: 3.27 | E130: 0.39 | F130: 20.64 | G130: 99.1 | H130: 0.05 | I130: 0.02 | J130: 0 | K130: 0 | L130: 0 | M130: 137.94 | N130: 46.06 | O130: 7.92 | P130: 12.01 | Q130: 31.58 | R130: 0.76 | S130: 0 | T130: 0 | U130: 0
A131: Пром. | B131: Сок яблочный | C131: 200 | D131: 1 | E131: 0.2 | F131: 20.2 | G131: 86.6 | H131: 0.02 | I131: 0.02 | J131: 0 | K131: 0 | L131: 4 | M131: 12 | N131: 240 | O131: 14 | P131: 8 | Q131: 14 | R131: 2.8 | S131: 0 | T131: 0 | U131: 0
B132: Итого за Полдник | C132: =C130+C131 -> 220 | D132: =D130+D131 -> 4.27 | E132: =E130+E131 -> 0.59 | F132: 40.84 | G132: 185.7 | H132: 0.07 | I132: 0.04 | J132: 0 | K132: 0 | L132: 4 | M132: 149.94 | N132: 286.06 | O132: 21.92 | P132: 20.01 | Q132: 45.58 | R132: 3.56 | S132: 0 | T132: 0 | U132: 0
B133: Ужин
A134: 54-6г-2020 | B134: Горошница | C134: 150 | D134: 3.6 | E134: 4.8 | F134: 36.4 | G134: 203.5 | H134: 0.03 | I134: 0.02 | J134: 18.36 | K134: 0.09 | L134: 0 | M134: 152.8 | N134: 46.55 | O134: 106.65 | P134: 23.59 | Q134: 72.57 | R134: 0.49 | S134: 20.76 | T134: 7.24 | U134: 27.19
A135: ном.рец №174 | B135: Тефтели мясные из говядины, полуфабрикат в соусе | C135: 75/30 | D135: 10.81 | E135: 10.4 | F135: 8.42 | G135: 168.9 | H135: 0 | I135: 0 | J135: 38.45 | K135: 0.01 | L135: 1.79 | M135: 3 | N135: 43 | O135: 45.75 | P135: 35.13 | Q135: 109 | R135: 1.6 | S135: 0 | T135: 0 | U135: 0
A136: 54-1гн-2020 | B136: Чай без сахара | C136: 200 | D136: 0.2 | E136: 0 | F136: 0.1 | G136: 1.4 | H136: 0 | I136: 0.01 | J136: 0.3 | K136: 0 | L136: 0.04 | M136: 0.62 | N136: 20.58 | O136: 65.96 | P136: 3.83 | Q136: 7.18 | R136: 0.71 | S136: 0 | T136: 0 | U136: 0
A137: Пром. | B137: Хлеб пшеничный | C137: 30 | D137: 2.3 | E137: 0.2 | F137: 14.8 | G137: 70.3 | H137: 0.03 | I137: 0.01 | J137: 0 | K137: 0 | L137: 0 | M137: 149.7 | N137: 27.9 | O137: 6 | P137: 4.2 | Q137: 19.5 | R137: 0.33 | S137: 0.96 | T137: 1.8 | U137: 4.35
A138: Пром. | B138: Фрукт (апельсин, банан, яблоко) | C138: 100 | D138: 1.57 | E138: 0.35 | F138: 14.17 | G138: 66.1 | H138: 0.05 | I138: 0.04 | J138: 8.4 | K138: 0 | L138: 42 | M138: 17 | N138: 286 | O138: 52 | P138: 20 | Q138: 35 | R138: 0.5 | S138: 3.5 | T138: 0.8 | U138: 29.75
B139: Итого за Ужин | C139: 585 | D139: =SUM(D134:D138) -> 18.48 | E139: =SUM(E134:E138) -> 15.75 | F139: 73.89 | G139: 510.2 | H139: 0.11 | I139: 0.08 | J139: 65.51 | K139: 0.1 | L139: 43.83 | M139: 323.12 | N139: 424.03 | O139: 276.36 | P139: 86.75 | Q139: 243.25 | R139: 3.63 | S139: 25.22 | T139: 9.84 | U139: 61.29
B140: Ужин 2
A141: Пром. | B141: Кефир 3.2% | C141: 200 | D141: 5.8 | E141: 5 | F141: 8 | G141: 100.2 | H141: 0.06 | I141: 0.27 | J141: 26.4 | K141: 0 | L141: 1 | M141: 76 | N141: 242 | O141: 211 | P141: 24 | Q141: 157 | R141: 0.2 | S141: 18 | T141: 3.5 | U141: 40
B142: Итого за ужин 2 | C142: =C141 -> 200 | D142: =D141 -> 5.8 | E142: 5 | F142: 8 | G142: 100.2 | H142: 0.06 | I142: 0.27 | J142: 26.4 | K142: 0 | L142: 1 | M142: 76 | N142: 242 | O142: 211 | P142: 24 | Q142: 157 | R142: 0.2 | S142: 18 | T142: 3.5 | U142: 40
B143: Итого за день | C143: =C119+C128+C132+C139+C142 -> 2155 | D143: =D119+D128+D132+D139+D142 -> 62.27 | E143: 51.3 | F143: 255.47 | G143: 1748.2 | H143: 0.6 | I143: 0.76 | J143: 280.88 | K143: 0.46 | L143: 68.25 | M143: 1495 | N143: 2096.17 | O143: 935.91 | P143: 278.96 | Q143: 1023.59 | R143: 16.06 | S143: 120.72 | T143: 50.78 | U143: 188.66
A145: 5 день, 1 неделя
A146: № рецептуры | B146: Прием пищи, наименование блюда | C146: Масса | D146: Пищевые вещества | G146: Энергетическая ценность | H146: Витамины | M146: Минеральные вещества
D147: Белки | E147: Жиры | F147: Углеводы | H147: B1 | I147: B2 | J147: A | K147: D | L147: C | M147: Na | N147: K | O147: Ca | P147: Mg | Q147: P | R147: Fe | S147: I | T147: Se | U147: F
C148: г | D148: г | E148: г | F148: г | G148: ккал | H148: мг | I148: мг | J148: мкг рет.экв | K148: мкг | L148: мг | M148: мг | N148: мг | O148: мг | P148: мг | Q148: мг | R148: мг | S148: мкг | T148: мкг | U148: мкг
B149: Завтрак
A150: 54-16к-2020 | B150: Каша "Дружба" | C150: 160 | D150: 3.99 | E150: 4.72 | F150: 19.2 | G150: 135.1 | H150: 0.06 | I150: 0.1 | J150: 21.73 | K150: 0.05 | L150: 0 | M150: 268 | N150: 125 | O150: 110 | P150: 21 | Q150: 100 | R150: 0.4 | S150: 39.91 | T150: 3.2 | U150: 24.89
A151: 54-21гн-2020 | B151: Какао с молоком | C151: 200 | D151: 4.7 | E151: 3.5 | F151: 12.5 | G151: 100.4 | H151: 0.04 | I151: 0.16 | J151: 17.25 | K151: 0 | L151: 0.68 | M151: 49.95 | N151: 220.33 | O151: 167.68 | P151: 34.32 | Q151: 130.28 | R151: 1.09 | S151: 11.7 | T151: 2.29 | U151: 38.25
A152: Пром. | B152: Хлеб пшеничный | C152: 30 | D152: 2.3 | E152: 0.2 | F152: 14.8 | G152: 70.3 | H152: 0.03 | I152: 0.01 | J152: 0 | K152: 0 | L152: 0 | M152: 149.7 | N152: 27.9 | O152: 6 | P152: 4.2 | Q152: 19.5 | R152: 0.33 | S152: 0.96 | T152: 1.8 | U152: 4.35
B153: Итого за Завтрак | C153: =C150+C151+C152 -> 390 | D153: =D150+D151+D152 -> 10.99 | E153: 8.42 | F153: 46.5 | G153: 305.8 | H153: 0.13 | I153: 0.27 | J153: 38.98 | K153: 0.05 | L153: 0.68 | M153: 467.65 | N153: 373.23 | O153: 283.68 | P153: 59.52 | Q153: 249.78 | R153: 1.82 | S153: 52.57 | T153: 7.29 | U153: 67.49
B154: Обед
A155: № Т/к 40 | B155: Салат картофельный с морковью, зеленым горошком и растительным маслом | C155: 60 | D155: 0.5 | E155: 5.7 | F155: 4.5 | G155: 66.9 | H155: 0 | I155: 0 | J155: 0.4 | K155: 0 | L155: 4.5 | M155: 0 | N155: 0 | O155: 13.1 | P155: 15 | Q155: 32.5 | R155: 0.6 | S155: 0 | T155: 0 | U155: 0
A156: 54-8с-2020 | B156: Суп гороховый | C156: 200 | D156: 6.7 | E156: 4.6 | F156: 16.3 | G156: 133.1 | H156: 0.14 | I156: 0.05 | J156: 97.19 | K156: 0 | L156: 4.77 | M156: 95.82 | N156: 382.43 | O156: 26.94 | P156: 29 | Q156: 80.47 | R156: 1.48 | S156: 15.96 | T156: 2.01 | U156: 28.88
A157: 54-12м-2020 | B157: Плов с куринными грудками | C157: 150/50 | D157: 11.7 | E157: 8.98 | F157: 26.01 | G157: 233.2 | H157: 0.07 | I157: 0.06 | J157: 144.87 | K157: 0 | L157: 2.08 | M157: 272.9 | N157: 287.76 | O157: 72.64 | P157: 78.85 | Q157: 174.89 | R157: 1.53 | S157: 37.41 | T157: 19.63 | U157: 118.1
A158: 54-1хн-2020 | B158: Компот из смеси сухофруктов | C158: 200 | D158: 0.47 | E158: 0 | F158: 14.78 | G158: 65 | H158: 0 | I158: 0 | J158: 15 | K158: 0 | L158: 0 | M158: 0 | N158: 0 | O158: 108 | P158: 2 | Q158: 4 | R158: 0.1 | S158: 0 | T158: 0 | U158: 0
A159: Пром. | B159: Хлеб пшеничный | C159: 20 | D159: 1.52 | E159: 0.16 | F159: 9.84 | G159: 46.9 | H159: 0.02 | I159: 0.01 | J159: 0 | K159: 0 | L159: 0 | M159: 100 | N159: 19 | O159: 4 | P159: 3 | Q159: 13 | R159: 0.2 | S159: 0.64 | T159: 1.2 | U159: 2.9
A160: Пром. | B160: Хлеб ржаной | C160: 20 | D160: 1.3 | E160: 0.2 | F160: 6.7 | G160: 34.2 | H160: 0.04 | I160: 0.02 | J160: 0 | K160: 0 | L160: 0 | M160: 122 | N160: 49 | O160: 7 | P160: 9.4 | Q160: 31.6 | R160: 0.78 | S160: 0 | T160: 6.18 | U160: 0
A161: 54-10В | B161: Булочка ванильная | C161: 60 | D161: 4.68 | E161: 4.03 | F161: 27.46 | G161: 177 | H161: 0.05 | I161: 0.02 | J161: 19.12 | K161: 0.15 | L161: 0 | M161: 241 | N161: 50 | O161: 18 | P161: 6 | Q161: 41 | R161: 0.5 | S161: 33.36 | T161: 3.1 | U161: 11.03
B162: Итого за Обед | C162: 760 | D162: =SUM(D155:D161) -> 26.87 | E162: =SUM(E155:E161) -> 23.67 | F162: 105.59 | G162: 756.3 | H162: 0.32 | I162: 0.16 | J162: 276.58 | K162: 0.15 | L162: 11.35 | M162: 831.72 | N162: 788.19 | O162: 249.68 | P162: 143.25 | Q162: 377.46 | R162: 5.19 | S162: 87.37 | T162: 32.12 | U162: 160.91
B163: Полдник
A164: Пром. | B164: Сок персиковый | C164: 200 | D164: 0.6 | E164: 0 | F164: 33 | G164: 134.4 | H164: 0.03 | I164: 0.06 | J164: 60 | K164: 0 | L164: 5 | M164: 9 | N164: 252 | O164: 9 | P164: 21 | Q164: 26 | R164: 0.3 | S164: 0 | T164: 0 | U164: 0
A165: Пром. | B165: Пряник | C165: 30 | D165: 1.8 | E165: 1.4 | F165: 22.5 | G165: 109.8 | H165: 0.02 | I165: 0.01 | J165: 0 | K165: 0 | L165: 0 | M165: 0.6 | N165: 21.3 | O165: 3.3 | P165: 2.7 | Q165: 15 | R165: 0.24 | S165: 0 | T165: 0 | U165: 0
B166: Итого за Полдник | C166: =C164+C165 -> 230 | D166: =D164+D165 -> 2.4 | E166: 1.4 | F166: 55.5 | G166: 244.2 | H166: 0.05 | I166: 0.07 | J166: 60 | K166: 0 | L166: 5 | M166: 9.6 | N166: 273.3 | O166: 12.3 | P166: 23.7 | Q166: 41 | R166: 0.54 | S166: 0 | T166: 0 | U166: 0
B167: Ужин
A168: 54-9г | B168: Рагу из овощей | C168: 200 | D168: 3.82 | E168: 9.99 | F168: 18.17 | G168: 177.9 | H168: 0.11 | I168: 0.1 | J168: 412.46 | K168: 0.02 | L168: 17 | M168: 259 | N168: 572 | O168: 85 | P168: 39 | Q168: 93 | R168: 1.4 | S168: 41.31 | T168: 0.8 | U168: 54.17
A169: 54-2гн-2020 | B169: Чай-заварка | C169: 200 | D169: 0.2 | E169: 0 | F169: 6.4 | G169: 26.8 | H169: 0 | I169: 0.01 | J169: 0.3 | K169: 0 | L169: 0.04 | M169: 0.68 | N169: 20.76 | O169: 66.08 | P169: 3.83 | Q169: 7.18 | R169: 0.73 | S169: 0 | T169: 0 | U169: 0
A170: Пром. | B170: Хлеб пшеничный | C170: 30 | D170: 2.3 | E170: 0.2 | F170: 14.8 | G170: 70.3 | H170: 0.03 | I170: 0.01 | J170: 0 | K170: 0 | L170: 0 | M170: 149.7 | N170: 27.9 | O170: 6 | P170: 4.2 | Q170: 19.5 | R170: 0.33 | S170: 0.96 | T170: 1.8 | U170: 4.35
A171: Пром. | B171: Хлеб ржаной | C171: 20 | D171: 1.3 | E171: 0.2 | F171: 6.7 | G171: 34.2 | H171: 0.04 | I171: 0.02 | J171: 0 | K171: 0 | L171: 0 | M171: 122 | N171: 49 | O171: 7 | P171: 9.4 | Q171: 31.6 | R171: 0.78 | S171: 0 | T171: 6.18 | U171: 0
B172: Итого за Ужин | C172: =C168+C169+C170+C171 -> 450 | D172: =D168+D169+D170+D171 -> 7.62 | E172: 10.39 | F172: 46.07 | G172: 309.2 | H172: 0.18 | I172: 0.14 | J172: 412.76 | K172: 0.02 | L172: 17.04 | M172: 531.38 | N172: 669.66 | O172: 164.08 | P172: 56.43 | Q172: 151.28 | R172: 3.24 | S172: 42.27 | T172: 8.78 | U172: 58.52
B173: Ужин 2
A174: Пром. | B174: Ряженка 2.5% | C174: 200 | D174: 5.8 | E174: 5 | F174: 8.4 | G174: 101.8 | H174: 0.03 | I174: 0.21 | J174: 26.4 | K174: 0 | L174: 0 | M174: 76 | N174: 242 | O174: 218 | P174: 24 | Q174: 160 | R174: 0.2 | S174: 18 | T174: 1.8 | U174: 40
B175: Итого за ужин 2 | C175: =C174 -> 200 | D175: =D174 -> 5.8 | E175: 5 | F175: 8.4 | G175: 101.8 | H175: 0.03 | I175: 0.21 | J175: 26.4 | K175: 0 | L175: 0 | M175: 76 | N175: 242 | O175: 218 | P175: 24 | Q175: 160 | R175: 0.2 | S175: 18 | T175: 1.8 | U175: 40
B176: Итого за день | C176: =C153+C162+C166+C172+C175 -> 2030 | D176: 53.68 | E176: 48.88 | F176: 262.06 | G176: 1717.3 | H176: 0.71 | I176: 0.85 | J176: 814.72 | K176: 0.22 | L176: 34.07 | M176: 1916.35 | N176: 2346.38 | O176: 927.74 | P176: 306.9 | Q176: 979.52 | R176: 10.99 | S176: 200.21 | T176: 49.99 | U176: 326.92
A178: 7 день, 2 неделя
A179: № рецептуры | B179: Прием пищи, наименование блюда | C179: Масса | D179: Пищевые вещества | G179: Энергетическая ценность | H179: Витамины | M179: Минеральные вещества
D180: Белки | E180: Жиры | F180: Углеводы | H180: B1 | I180: B2 | J180: A | K180: D | L180: C | M180: Na | N180: K | O180: Ca | P180: Mg | Q180: P | R180: Fe | S180: I | T180: Se | U180: F
C181: г | D181: г | E181: г | F181: г | G181: ккал | H181: мг | I181: мг | J181: мкг рет.экв | K181: мкг | L181: мг | M181: мг | N181: мг | O181: мг | P181: мг | Q181: мг | R181: мг | S181: мкг | T181: мкг | U181: мкг
B182: Завтрак
A183: 54-22к-2020 | B183: Каша жидкая молочная овсяная | C183: 150 | D183: 5.1 | E183: 5.6 | F183: 18.5 | G183: 144.5 | H183: 0.11 | I183: 0.13 | J183: 21.81 | K183: 0.05 | L183: 0.46 | M183: 260.87 | N183: 177.7 | O183: 123.12 | P183: 34.24 | Q183: 140.9 | R183: 0.89 | S183: 39 | T183: 7.47 | U183: 37.21
A184: 54-4гн-2020 | B184: Чай с молоком и сахаром | C184: 200 | D184: 1.6 | E184: 1.1 | F184: 8.6 | G184: 50.9 | H184: 0.01 | I184: 0.07 | J184: 6.9 | K184: 0 | L184: 0.3 | M184: 19.68 | N184: 81.35 | O184: 103.48 | P184: 9.92 | Q184: 46.33 | R184: 0.78 | S184: 4.5 | T184: 0.88 | U184: 10
A185: Пром. | B185: Хлеб пшеничный | C185: 30 | D185: 2.3 | E185: 0.2 | F185: 14.8 | G185: 70.3 | H185: 0.03 | I185: 0.01 | J185: 0 | K185: 0 | L185: 0 | M185: 149.7 | N185: 27.9 | O185: 6 | P185: 4.2 | Q185: 19.5 | R185: 0.33 | S185: 0.96 | T185: 1.8 | U185: 4.35
B186: Итого за Завтрак | C186: =C183+C184+C185 -> 380 | D186: =D183+D184+D185 -> 9 | E186: 6.9 | F186: 41.9 | G186: 265.7 | H186: 0.15 | I186: 0.21 | J186: 28.71 | K186: 0.05 | L186: 0.76 | M186: 430.25 | N186: 286.95 | O186: 232.6 | P186: 48.36 | Q186: 206.73 | R186: 2 | S186: 44.46 | T186: 10.15 | U186: 51.56
B187: Обед
A188: № т/к 41 | B188: Салат из отварной моркови с яблоками и растительным маслом | C188: 60 | D188: 0.6 | E188: 5.9 | F188: 4.6 | G188: 74.4 | H188: 0 | I188: 0 | J188: 0.7 | K188: 0 | L188: 1.4 | M188: 0 | N188: 0 | O188: 19.1 | P188: 13.6 | Q188: 19.6 | R188: 0.8 | S188: 0 | T188: 0 | U188: 0
A189: 54-8с | B189: Суп гороховый | C189: 200 | D189: 7.9 | E189: 4.6 | F189: 19.28 | G189: 133 | H189: 0.13 | I189: 0.05 | J189: 97.18 | K189: 0 | L189: 4 | M189: 95 | N189: 383 | O189: 26 | P189: 29 | Q189: 80 | R189: 1.4 | S189: 15.96 | T189: 1.9 | U189: 28.88
A190: 54-4г-2020 | B190: Каша гречневая рассыпчатая | C190: 150 | D190: 8.2 | E190: 6.3 | F190: 35.9 | G190: 233.7 | H190: 0.21 | I190: 0.12 | J190: 19.19 | K190: 0.09 | L190: 0 | M190: 149.45 | N190: 219.36 | O190: 46.62 | P190: 120.16 | Q190: 180.99 | R190: 4.05 | S190: 22.28 | T190: 3.52 | U190: 16.06
A191: 54-25м-2020 | B191: Курица тушеная с морковью | C191: 40/60 | D191: 14.12 | E191: 5.78 | F191: 4.46 | G191: 126.4 | H191: 0.04 | I191: 0.05 | J191: 286.31 | K191: 0.02 | L191: 0 | M191: 249 | N191: 209 | O191: 33 | P191: 55 | Q191: 112 | R191: 0.9 | S191: 35.07 | T191: 12 | U191: 94.93
A192: Т/к №430 | B192: Чай с сахаром и яблоком | C192: 200 | D192: 0.2 | E192: 0 | F192: 8.2 | G192: 34.1 | H192: 0 | I192: 0 | J192: 0 | K192: 0 | L192: 0.4 | M192: 0 | N192: 0 | O192: 14.1 | P192: 6.5 | Q192: 8.4 | R192: 0.9 | S192: 0 | T192: 0 | U192: 0
A193: т/к №410 | B193: Треугольник П/Ф | C193: 70 | D193: 5.7 | E193: 5 | F193: 29.8 | G193: 221.7 | H193: 0.1 | I193: 0 | J193: 0 | K193: 0 | L193: 1.5 | M193: 0 | N193: 0 | O193: 26.8 | P193: 25.7 | Q193: 100.5 | R193: 1.5 | S193: 0 | T193: 0 | U193: 0
A194: Пром. | B194: Хлеб ржаной | C194: 20 | D194: 1.3 | E194: 0.2 | F194: 6.7 | G194: 34.2 | H194: 0.04 | I194: 0.02 | J194: 0 | K194: 0 | L194: 0 | M194: 122 | N194: 49 | O194: 7 | P194: 9.4 | Q194: 31.6 | R194: 0.78 | S194: 0 | T194: 6.18 | U194: 0
B195: Итого за Обед | C195: 800 | D195: =D188+D189+D190+D191+D192+D193+D194 -> 38.02 | E195: =E188+E189+E190+E191+E192+E193+E194 -> 27.78 | F195: 108.94 | G195: 857.5 | H195: 0.52 | I195: 0.24 | J195: 403.38 | K195: 0.11 | L195: 7.3 | M195: 615.45 | N195: 860.36 | O195: 172.62 | P195: 259.36 | Q195: 533.09 | R195: 10.33 | S195: 73.31 | T195: 23.6 | U195: 139.87
B196: Полдник
A197: Пром. | B197: Сок яблочный | C197: 200 | D197: 1 | E197: 0.2 | F197: 20.2 | G197: 86.6 | H197: 0.02 | I197: 0.02 | J197: 0 | K197: 0 | L197: 4 | M197: 12 | N197: 240 | O197: 14 | P197: 8 | Q197: 14 | R197: 2.8 | S197: 0 | T197: 0 | U197: 0
A198: Пром. | B198: Сушка простая | C198: 20 | D198: 3.27 | E198: 0.39 | F198: 20.64 | G198: 99.1 | H198: 0.05 | I198: 0.02 | J198: 0 | K198: 0 | L198: 0 | M198: 137.94 | N198: 46.06 | O198: 7.92 | P198: 12.01 | Q198: 31.58 | R198: 0.76 | S198: 0 | T198: 0 | U198: 0
B199: Итого за Полдник | C199: =C197+C198 -> 220 | D199: =D197+D198 -> 4.27 | E199: 0.59 | F199: 40.84 | G199: 185.7 | H199: 0.07 | I199: 0.04 | J199: 0 | K199: 0 | L199: 4 | M199: 149.94 | N199: 286.06 | O199: 21.92 | P199: 20.01 | Q199: 45.58 | R199: 3.56 | S199: 0 | T199: 0 | U199: 0
B200: Ужин
A201: 54-6г-2020 | B201: Рис отварной | C201: 150 | D201: 5.3 | E201: 4.9 | F201: 32.8 | G201: 196.8 | H201: 0.06 | I201: 0.02 | J201: 18.36 | K201: 0.09 | L201: 0 | M201: 149.04 | N201: 53.8 | O201: 105.83 | P201: 7.19 | Q201: 40.7 | R201: 0.73 | S201: 20.77 | T201: 0.06 | U201: 11.92
A202: 54-7р-2020 | B202: Рыба припущенная в молоко | C202: 70/30 | D202: 8.06 | E202: 4.42 | F202: 2.89 | G202: 131.6 | H202: 0.08 | I202: 0.11 | J202: 9.02 | K202: 0.16 | L202: 1 | M202: 111 | N202: 347 | O202: 68 | P202: 44 | Q202: 202 | R202: 0.7 | S202: 133.48 | T202: 11.9 | U202: 572.6
A203: 54-1хн-2020 | B203: Компот из смеси сухофруктов | C203: 200 | D203: 0.5 | E203: 0 | F203: 19.8 | G203: 81 | H203: 0 | I203: 0 | J203: 15 | K203: 0 | L203: 0.02 | M203: 0.05 | N203: 0.17 | O203: 108.08 | P203: 2.11 | Q203: 4.31 | R203: 0.08 | S203: 0 | T203: 0 | U203: 0
A204: Пром. | B204: Хлеб пшеничный | C204: 30 | D204: 2.3 | E204: 0.2 | F204: 14.8 | G204: 70.3 | H204: 0.03 | I204: 0.01 | J204: 0 | K204: 0 | L204: 0 | M204: 149.7 | N204: 27.9 | O204: 6 | P204: 4.2 | Q204: 19.5 | R204: 0.33 | S204: 0.96 | T204: 1.8 | U204: 4.35
A205: Пром. | B205: Хлеб ржаной | C205: 20 | D205: 1.3 | E205: 0.2 | F205: 6.7 | G205: 34.2 | H205: 0.04 | I205: 0.02 | J205: 0 | K205: 0 | L205: 0 | M205: 122 | N205: 49 | O205: 7 | P205: 9.4 | Q205: 31.6 | R205: 0.78 | S205: 0 | T205: 6.18 | U205: 0
B206: Итого за Ужин | C206: 500 | D206: =D201+D202+D203+D208+D204 -> 21.96 | E206: =E201+E202+E203+E208+E204 -> 14.52 | F206: 78.69 | G206: 581.5 | H206: 0.2 | I206: 0.35 | J206: 68.78 | K206: 0.25 | L206: 1.02 | M206: 485.79 | N206: 670.87 | O206: 505.91 | P206: 81.5 | Q206: 426.51 | R206: 2.04 | S206: 173.21 | T206: 15.56 | U206: 628.87
B207: Ужин 2
A208: Пром. | B208: Ряженка 2.5% | C208: 200 | D208: 5.8 | E208: 5 | F208: 8.4 | G208: 101.8 | H208: 0.03 | I208: 0.21 | J208: 26.4 | K208: 0 | L208: 0 | M208: 76 | N208: 242 | O208: 218 | P208: 24 | Q208: 160 | R208: 0.2 | S208: 18 | T208: 1.8 | U208: 40
B209: Итого за ужин 2 | C209: =C208 -> 200 | D209: =D208 -> 5.8 | E209: 5 | F209: 8.4 | G209: 101.8 | H209: 0.03 | I209: 0.21 | J209: 26.4 | K209: 0 | L209: 0 | M209: 76 | N209: 242 | O209: 218 | P209: 24 | Q209: 160 | R209: 0.2 | S209: 18 | T209: 1.8 | U209: 40
... 146 more rows
